fUST/lending_fUST_20250113
["ID","MTS","AMOUNT","RATE_DAILY","PERIOD"]
[348698860,1736724638521,-399.82648708,0.00019178,2]
[348698862,1736724638530,-117.70350812,0.00019178,2]
[348698864,1736724638542,-382.29649188,0.00019178,2]
[348698866,1736724638551,-603.17355938,0.00019178,2]
[348698868,1736724638560,-201.38,0.00019178,2]
[348698870,1736724638569,-500.0,0.00019178,2]
[348698872,1736724638578,-2482.77,0.00019178,2]
[348698874,1736724638587,-500.0,0.00019178,2]
[348698876,1736724638599,-500.0,0.00019178,2]
[348698878,1736724638609,-188.64384292,0.00019178,2]
[348698880,1736724638617,-500.0,0.00019178,2]
[348698882,1736724638627,-500.0,0.00019178,2]
[348698883,1736724638636,-500.0,0.00019178,2]
[348698884,1736724638645,-500.0,0.00019178,2]
[348698885,1736724638654,-1729.58,0.00019178,2]
[348698886,1736724638664,-981.45,0.00019178,2]
[348698887,1736724638673,-254.7827039,0.00019178,2]
[348698888,1736724638683,-2423.93,0.00019178,2]
[348698889,1736724638692,-603.9,0.00019178,2]
[348698890,1736724638702,-5439.13733898,0.00019178,2]
[348698891,1736724638714,-2475.2287739,0.00019178,2]
[348698978,1736724643390,-4593.13388712,0.00019178,2]
[348698980,1736724643401,-500.0,0.00019178,2]
[348698983,1736724643418,-633.31,0.00019178,2]
[348698986,1736724643432,-537.62,0.00019178,2]
[348698988,1736724643442,-845.14,0.00019178,2]
[348698990,1736724643451,-994.37,0.00019178,2]
[348698992,1736724643462,-500.0,0.00019178,2]
[348698994,1736724643471,-500.0,0.00019178,2]
[348698995,1736724643481,-500.0,0.00019178,2]
[348698996,1736724643490,-500.0,0.00019178,2]
[348698998,1736724643500,-500.0,0.00019178,2]
[348698999,1736724643510,-500.0,0.00019178,2]
[348699000,1736724643520,-424.45,0.00019178,2]
[348699001,1736724643529,-500.0,0.00019178,2]
[348699002,1736724643540,-500.0,0.00019178,2]
[348699003,1736724643550,-500.0,0.00019178,2]
[348699004,1736724643559,-500.0,0.00019178,2]
[348699005,1736724643568,-153.76,0.00019178,2]
[348699006,1736724643717,-168.144,0.00019443,2]
[348699007,1736724643727,-500.0,0.00019451,2]
[348699008,1736724643736,-500.0,0.00019451,2]
[348699009,1736724643745,-500.0,0.00019451,2]
[348699010,1736724643755,-500.0,0.00019451,2]
[348699011,1736724643768,-372.60788436,0.00019451,2]
[348699012,1736724643778,-500.0,0.00019451,2]
[348699013,1736724643787,-396.64756811,0.00019451,2]
[348699014,1736724643796,-500.0,0.00019451,2]
[348699015,1736724643806,-500.0,0.00019451,2]
[348699016,1736724643815,-500.0,0.00019451,2]
[348699017,1736724643825,-500.0,0.00019451,2]
[348699018,1736724643834,-500.0,0.00019451,2]
[348699019,1736724643845,-500.0,0.00019451,2]
[348699020,1736724643855,-500.0,0.00019451,2]
[348699021,1736724643864,-500.0,0.00019451,2]
[348699022,1736724643874,-500.0,0.00019451,2]
[348699023,1736724643883,-500.0,0.00019451,2]
[348699024,1736724643892,-500.0,0.00019451,2]
[348699025,1736724643901,-500.0,0.00019451,2]
[348699026,1736724643911,-288.16671197,0.00019451,2]
[348699027,1736724643920,-500.0,0.00019451,2]
[348699028,1736724643930,-500.0,0.00019451,2]
[348699029,1736724643939,-380.5966332,0.00019451,2]
[348699030,1736724643950,-500.0,0.00019451,2]
[348699031,1736724643959,-500.0,0.00019451,2]
[348699032,1736724643969,-500.0,0.00019451,2]
[348699033,1736724643978,-350.74,0.00019451,3]
[348699034,1736724643987,-172.30325941,0.00019451,3]
[348699053,1736724901945,166.062472,0.0002411,120]
[348699055,1736725449806,400.0,0.00013973,2]
[348699062,1736725793056,200.0,0.00015,2]
[348699110,1736725832947,-300.0,0.00018823,2]
[348699111,1736725832956,-196.0,0.00018824,2]
[348699112,1736725832966,-137.12684086,0.00018824,2]
[348699113,1736725832978,-17.87315914,0.00018824,2]
[348699114,1736725832987,-155.0,0.00018824,2]
[348699115,1736725832996,-155.0,0.00018824,2]
[348699116,1736725833006,-155.0,0.00018824,2]
[348699117,1736725833015,-140.89395217,0.00018824,2]
[348699179,1736725838610,-14.10604783,0.00018824,2]
[348699182,1736725838620,-155.0,0.00018824,2]
[348699185,1736725838629,-155.0,0.00018824,2]
[348699188,1736725838639,-155.0,0.00018824,2]
[348699191,1736725838648,-155.0,0.00018824,2]
[348699193,1736725838657,-155.0,0.00018824,2]
[348699195,1736725838666,-155.0,0.00018824,2]
[348699197,1736725838675,-155.0,0.00018824,2]
[348699199,1736725838684,-155.0,0.00018824,2]
[348699201,1736725838693,-155.0,0.00018824,2]
[348699203,1736725838702,-155.0,0.00018824,2]
[348699205,1736725838711,-155.0,0.00018824,2]
[348699207,1736725838720,-155.0,0.00018824,2]
[348699209,1736725838730,-155.0,0.00018824,2]
[348699211,1736725838739,-210.0,0.00018824,2]
[348699213,1736725838748,-153.7,0.00018824,2]
[348699215,1736725838758,-556.085,0.00019,2]
[348699217,1736725838767,-302.8788636,0.00019,2]
[348699219,1736725838776,-181.46895424,0.00019178,2]
[348699221,1736725838784,-2379.32,0.00019178,2]
[348699223,1736725838793,-500.0,0.00019178,2]
[348699225,1736725838802,-500.0,0.00019178,2]
[348699227,1736725838811,-188.0,0.00019178,2]
[348699229,1736725838821,-500.0,0.00019178,2]
[348699231,1736725838830,-500.0,0.00019178,2]
[348699233,1736725838839,-500.0,0.00019178,2]
[348699235,1736725838848,-500.0,0.00019178,2]
[348699237,1736725838857,-500.0,0.00019178,2]
[348699239,1736725838867,-500.0,0.00019178,2]
[348699242,1736725838876,-500.0,0.00019178,2]
[348699244,1736725838886,-2375.27,0.00019178,2]
[348699246,1736725838895,-322.84167115,0.00019178,2]
[348699248,1736725838908,-294.02376698,0.00019178,2]
[348699250,1736725838917,-500.0,0.00019178,2]
[348699252,1736725838926,-940.55,0.00019178,2]
[348699254,1736725838935,-12060.29,0.00019178,2]
[348699256,1736725838945,-952.93,0.00019178,2]
[348699258,1736725838954,-500.0,0.00019178,2]
[348699260,1736725838963,-500.0,0.00019178,2]
[348699262,1736725838972,-167.279881,0.00019178,2]
[348699264,1736725838982,-157.50349805,0.0001919,2]
[348699266,1736725838991,-500.0,0.00019247,2]
[348699268,1736725839000,-1669.36,0.00019247,3]
[348699270,1736725839010,-276.75649372,0.00019247,3]
[348699644,1736725846545,-500.0,0.00019178,2]
[348699645,1736725846554,-288.66602843,0.00019247,3]
[348699646,1736725846566,-13.31747785,0.00019247,3]
[348699647,1736725846575,-500.0,0.00019247,3]
[348699648,1736725846584,-515.22,0.00019247,3]
[348699649,1736725846593,-809.93,0.00019247,3]
[348699651,1736725846602,-500.0,0.00019247,3]
[348699652,1736725846611,-500.0,0.00019247,3]
[348699653,1736725846620,-500.0,0.00019247,3]
[348699654,1736725846640,-500.0,0.00019247,3]
[348699655,1736725846650,-843.10188816,0.00019352,2]
[348699656,1736725846659,-185.438,0.00019443,2]
[348699657,1736725846668,-153.0,0.00019449,2]
[348699658,1736725846678,-500.0,0.00019451,3]
[348699659,1736725846687,-500.0,0.00019451,3]
[348699660,1736725846697,-153.67091194,0.00019451,3]
[348699661,1736725846707,-500.0,0.00019451,2]
[348699662,1736725846721,-500.0,0.00019451,2]
[348699663,1736725846731,-500.0,0.00019451,2]
[348699664,1736725846740,-500.0,0.00019451,2]
[348699665,1736725846750,-500.0,0.00019451,2]
[348699666,1736725846759,-500.0,0.00019451,2]
[348699667,1736725846768,-500.0,0.00019451,2]
[348699668,1736725846778,-500.0,0.00019451,2]
[348699669,1736725846787,-500.0,0.00019451,2]
[348699670,1736725846796,-173.82823873,0.00019451,2]
[348699671,1736725846805,-500.0,0.00019451,2]
[348699672,1736725846815,-500.0,0.00019451,2]
[348699673,1736725846824,-500.0,0.00019451,2]
[348699674,1736725846834,-500.0,0.00019451,2]
[348699675,1736725846846,-500.0,0.00019451,2]
[348699676,1736725846856,-500.0,0.00019451,2]
[348699677,1736725846865,-500.0,0.00019451,2]
[348699678,1736725846875,-500.0,0.00019451,2]
[348699679,1736725846884,-500.0,0.00019451,2]
[348699680,1736725846893,-500.0,0.00019451,2]
[348699681,1736725846902,-500.0,0.00019451,2]
[348699682,1736725846912,-500.0,0.00019451,2]
[348699683,1736725846921,-500.0,0.00019451,2]
[348699684,1736725846931,-500.0,0.00019451,2]
[348699685,1736725846941,-500.0,0.00019451,2]
[348699686,1736725846950,-500.0,0.00019451,2]
[348699687,1736725846960,-500.0,0.00019451,2]
[348699688,1736725846969,-235.56885158,0.00019451,2]
[348699689,1736725846979,-500.0,0.00019451,2]
[348699690,1736725846989,-500.0,0.00019451,2]
[348699691,1736725847000,-588.60181101,0.00019451,2]
[348699692,1736725847009,-500.0,0.00019451,2]
[348699693,1736725847019,-500.0,0.00019451,2]
[348699694,1736725847030,-500.0,0.00019451,2]
[348699695,1736725847039,-500.0,0.00019451,2]
[348699696,1736725847048,-500.0,0.00019451,2]
[348699697,1736725847059,-500.0,0.00019451,2]
[348699698,1736725847068,-500.0,0.00019451,2]
[348699699,1736725847077,-500.0,0.00019451,2]
[348699700,1736725847087,-500.0,0.00019451,2]
[348699701,1736725847097,-400.94187287,0.00019451,2]
[348699702,1736725847106,-500.0,0.00019451,2]
[348699703,1736725847116,-500.0,0.00019451,2]
[348699704,1736725847255,-500.0,0.00019451,2]
[348699705,1736725847264,-500.0,0.00019451,2]
[348699706,1736725847274,-500.0,0.00019451,2]
[348699707,1736725847283,-500.0,0.00019451,2]
[348699708,1736725847292,-500.0,0.00019451,2]
[348699709,1736725847301,-500.0,0.00019451,2]
[348699710,1736725847310,-500.0,0.00019451,2]
[348699711,1736725847319,-500.0,0.00019451,2]
[348699712,1736725847328,-500.0,0.00019451,2]
[348699713,1736725847337,-500.0,0.00019451,2]
[348699714,1736725847346,-500.0,0.00019451,2]
[348699715,1736725847355,-500.0,0.00019451,2]
[348699716,1736725847364,-1832.72,0.00019451,3]
[348699717,1736725847374,-151.0,0.00019451,2]
[348699718,1736725847383,-151.0,0.00019451,2]
[348699719,1736725847392,-151.0,0.00019451,2]
[348699720,1736725847401,-151.0,0.00019451,2]
[348699721,1736725847410,-288.831231,0.00019451,2]
[348699722,1736725847419,-973.2,0.00019451,3]
[348699723,1736725847429,-151.0,0.00019451,2]
[348699724,1736725847438,-151.0,0.00019451,2]
[348699725,1736725847447,-151.0,0.00019451,2]
[348699726,1736725847456,-2379.32,0.00019452,3]
[348699727,1736725847466,-500.0,0.00019452,3]
[348699728,1736725847475,-500.0,0.00019452,3]
[348699729,1736725847484,-326.83324327,0.00019452,2]
[348699730,1736725847493,-151.0,0.00019452,2]
[348699731,1736725847503,-403.10467171,0.00019452,2]
[348699732,1736725847512,-151.0,0.00019452,2]
[348699733,1736725847521,-151.0,0.00019452,2]
[348699734,1736725847530,-1388.767138,0.00019452,2]
[348699735,1736725847539,-1388.767138,0.00019452,2]
[348699736,1736725847548,-1388.767138,0.00019452,2]
[348699737,1736725847557,-1388.767138,0.00019452,2]
[348699738,1736725847566,-335.89,0.00019452,3]
[348699739,1736725847576,-166.673893,0.00019452,2]
[348699740,1736725847585,-166.673893,0.00019452,2]
[348699741,1736725847594,-166.673893,0.00019452,2]
[348699742,1736725847603,-166.673893,0.00019452,2]
[348699743,1736725847612,-151.0,0.00019452,2]
[348699744,1736725847621,-151.0,0.00019452,2]
[348699745,1736725847631,-151.0,0.00019452,2]
[348699746,1736725847640,-151.0,0.00019452,2]
[348699747,1736725847649,-151.0,0.00019452,2]
[348699748,1736725847658,-500.0,0.00019452,3]
[348699749,1736725847667,-500.0,0.00019452,3]
[348699750,1736725847676,-2375.27,0.00019452,3]
[348699751,1736725847685,-500.0,0.00019452,3]
[348699752,1736725847694,-151.0,0.00019452,2]
[348699753,1736725847703,-151.0,0.00019452,2]
[348699754,1736725847712,-151.0,0.00019452,2]
[348699755,1736725847721,-151.0,0.00019452,2]
[348699756,1736725847730,-940.55,0.00019452,3]
[348699757,1736725847740,-151.0,0.00019452,2]
[348699758,1736725847750,-151.0,0.00019452,2]
[348699759,1736725847759,-151.0,0.00019452,2]
[348699760,1736725847768,-151.0,0.00019452,2]
[348699761,1736725847778,-151.0,0.00019452,2]
[348699762,1736725847787,-151.0,0.00019452,2]
[348699763,1736725847798,-151.0,0.00019452,2]
[348699764,1736725847807,-151.0,0.00019452,2]
[348699765,1736725847816,-12060.29,0.00019452,3]
[348699766,1736725847825,-952.93,0.00019452,3]
[348699767,1736725847835,-151.0,0.00019452,2]
[348699768,1736725847844,-151.0,0.00019452,2]
[348699769,1736725847853,-500.0,0.00019452,3]
[348699770,1736725847862,-500.0,0.00019452,3]
[348699771,1736725847871,-151.0,0.00019452,2]
[348699772,1736725847881,-151.0,0.00019452,2]
[348699773,1736725847890,-151.0,0.00019452,2]
[348699774,1736725847899,-843.10188816,0.00019489,2]
[348699775,1736725847909,-500.0,0.00019521,2]
[348699776,1736725847919,-1669.36,0.00019521,3]
[348699777,1736725847930,-578.74,0.00019521,3]
[348699778,1736725847941,-500.0,0.00019521,3]
[348699779,1736725847950,-515.22,0.00019521,3]
[348699780,1736725847960,-809.93,0.00019521,3]
[348699781,1736725847969,-500.0,0.00019521,3]
[348699782,1736725847979,-500.0,0.00019521,3]
[348699783,1736725847989,-500.0,0.00019521,3]
[348699784,1736725848001,-500.0,0.00019521,3]
[348699785,1736725848010,-152.0,0.00019573,2]
[348699786,1736725848019,-843.10188816,0.00019626,2]
[348699787,1736725848029,-188.7698714,0.00019709,2]
[348699788,1736725848038,-153.0,0.00019711,2]
[348699789,1736725848048,-153.0,0.00019711,2]
[348699790,1736725848057,-153.0,0.00019711,2]
[348699791,1736725848067,-153.0,0.00019711,2]
[348699792,1736725848076,-153.0,0.00019711,2]
[348699793,1736725848087,-153.0,0.00019711,2]
[348699794,1736725848097,-153.0,0.00019711,2]
[348699795,1736725848106,-153.0,0.00019711,2]
[348699796,1736725848115,-153.0,0.00019711,2]
[348699797,1736725848125,-153.0,0.00019711,2]
[348699798,1736725848137,-153.0,0.00019711,2]
[348699799,1736725848146,-164.243965,0.00019711,2]
[348699800,1736725848156,-151.0,0.00019711,2]
[348699801,1736725848165,-153.0,0.00019711,2]
[348699802,1736725848175,-153.0,0.00019711,2]
[348699803,1736725848184,-153.0,0.00019711,2]
[348699804,1736725848194,-153.0,0.00019711,2]
[348699805,1736725848203,-153.0,0.00019711,2]
[348699806,1736725848215,-246.0,0.00019711,2]
[348699807,1736725848224,-151.0,0.00019715,2]
[348699808,1736725848233,-151.0,0.00019715,2]
[348699809,1736725848243,-151.0,0.00019715,2]
[348699810,1736725848252,-151.0,0.00019715,2]
[348699811,1736725848262,-1388.767138,0.00019715,2]
[348699812,1736725848271,-1388.767138,0.00019715,2]
[348699813,1736725848281,-1388.767138,0.00019715,2]
[348699814,1736725848290,-1388.767138,0.00019715,2]
[348699815,1736725848300,-1388.767138,0.00019715,2]
[348699816,1736725848309,-1388.767138,0.00019715,2]
[348699817,1736725848319,-166.673893,0.00019715,2]
[348699818,1736725848328,-166.673893,0.00019715,2]
[348699819,1736725848338,-166.673893,0.00019715,2]
[348699820,1736725848347,-166.673893,0.00019715,2]
[348699821,1736725848357,-166.673893,0.00019715,2]
[348699822,1736725848366,-166.673893,0.00019715,2]
[348699823,1736725848376,-151.0,0.00019715,2]
[348699824,1736725848385,-151.0,0.00019715,2]
[348699825,1736725848394,-151.0,0.00019715,2]
[348699826,1736725848404,-151.0,0.00019717,2]
[348699827,1736725848413,-333.142798,0.00019717,2]
[348699828,1736725848423,-333.142798,0.00019717,2]
[348699829,1736725848432,-165.265865,0.00019717,2]
[348699830,1736725848442,-165.265865,0.00019717,2]
[348699831,1736725848451,-176.526884,0.00019718,2]
[348699832,1736725848461,-176.526884,0.00019718,2]
[348699833,1736725848471,-176.526884,0.00019718,2]
[348699834,1736725848481,-176.526884,0.00019718,2]
[348699835,1736725848490,-151.0,0.00019718,2]
[348699836,1736725848499,-151.0,0.00019718,2]
[348699837,1736725848508,-151.0,0.00019718,2]
[348699838,1736725848518,-151.0,0.00019718,2]
[348699839,1736725848527,-224.11791956,0.00019718,2]
[348699840,1736725848537,-151.0,0.00019718,2]
[348699841,1736725848546,-228.860876,0.00019718,2]
[348699842,1736725848556,-228.860876,0.00019718,2]
[348699843,1736725848566,-228.860876,0.00019718,2]
[348699844,1736725848576,-228.860876,0.00019718,2]
[348699845,1736725848585,-500.0,0.00019718,3]
[348699846,1736725848594,-151.0,0.00019718,2]
[348699847,1736725848604,-18909.69392574,0.00019719,2]
[348699848,1736725848613,-151.0,0.00019719,2]
[348699849,1736725848623,-176.526884,0.00019719,2]
[348699850,1736725848632,-176.526884,0.00019719,2]
[348699851,1736725848641,-151.0,0.00019719,2]
[348699852,1736725848650,-151.0,0.00019719,2]
[348699853,1736725848659,-151.0,0.00019719,2]
[348699854,1736725848669,-151.0,0.00019719,2]
[348699855,1736725848678,-151.0,0.00019719,2]
[348699856,1736725848688,-333.142798,0.00019719,2]
[348699857,1736725848697,-333.142798,0.00019719,2]
[348699858,1736725848706,-228.860876,0.00019719,2]
[348699859,1736725848716,-228.860876,0.00019719,2]
[348699860,1736725848726,-151.0,0.00019719,2]
[348699861,1736725848735,-165.265865,0.00019719,2]
[348699862,1736725848745,-165.265865,0.00019719,2]
[348699863,1736725848754,-1388.767138,0.00019719,2]
[348699864,1736725848763,-1388.767138,0.00019719,2]
[348699865,1736725848772,-166.673893,0.00019719,2]
[348699866,1736725848781,-166.673893,0.00019719,2]
[348699867,1736725848790,-151.0,0.00019719,2]
[348699868,1736725848799,-151.0,0.00019724,2]
[348699869,1736725848808,-151.0,0.00019724,2]
[348699870,1736725848817,-1388.767138,0.00019724,2]
[348699871,1736725848827,-1388.767138,0.00019724,2]
[348699872,1736725848836,-166.673893,0.00019724,2]
[348699873,1736725848845,-166.673893,0.00019724,2]
[348699874,1736725848855,-151.0,0.00019725,2]
[348699875,1736725848864,-151.0,0.00019725,2]
[348699876,1736725848874,-500.0,0.00019725,3]
[348699877,1736725848883,-500.0,0.00019725,3]
[348699878,1736725848891,-151.0,0.00019725,2]
[348699879,1736725848900,-151.0,0.00019725,2]
[348699880,1736725848909,-1388.767138,0.00019725,2]
[348699881,1736725848919,-1388.767138,0.00019725,2]
[348699882,1736725848928,-429.6401637,0.00019725,2]
[348699883,1736725848937,-166.673893,0.00019725,2]
[348699884,1736725848946,-166.673893,0.00019725,2]
[348699885,1736725848956,-1832.72,0.00019725,3]
[348699886,1736725848965,-973.2,0.00019725,3]
[348699887,1736725848974,-151.0,0.00019726,2]
[348699888,1736725848983,-301.745632,0.00019726,2]
[348699889,1736725848993,-151.0,0.00019726,2]
[348699890,1736725849003,-151.0,0.00019726,2]
[348699891,1736725849012,-151.0,0.00019726,2]
[348699892,1736725849021,-176.526884,0.00019726,2]
[348699893,1736725849030,-176.526884,0.00019726,2]
[348699894,1736725849039,-151.0,0.00019726,2]
[348699895,1736725849049,-151.0,0.00019726,2]
[348699896,1736725849058,-151.0,0.00019726,2]
[348699897,1736725849067,-151.0,0.00019726,2]
[348699898,1736725849076,-151.0,0.00019726,2]
[348699899,1736725849086,-151.0,0.00019726,2]
[348699900,1736725849095,-151.0,0.00019726,2]
[348699901,1736725849105,-151.0,0.00019726,2]
[348699902,1736725849114,-151.0,0.00019726,2]
[348699903,1736725849123,-151.0,0.00019726,2]
[348699904,1736725849136,-151.0,0.00019726,2]
[348699905,1736725849145,-151.0,0.00019726,2]
[348699906,1736725849155,-151.0,0.00019726,2]
[348699907,1736725849164,-2379.32,0.00019726,3]
[348699908,1736725849174,-500.0,0.00019726,3]
[348699909,1736725849184,-500.0,0.00019726,3]
[348699910,1736725849195,-333.142798,0.00019726,2]
[348699911,1736725849206,-333.142798,0.00019726,2]
[348699912,1736725849215,-333.142798,0.00019726,2]
[348699913,1736725849225,-333.142798,0.00019726,2]
[348699914,1736725849234,-228.860876,0.00019726,2]
[348699915,1736725849243,-228.860876,0.00019726,2]
[348699916,1736725849252,-151.0,0.00019726,2]
[348699917,1736725849261,-237.379653,0.00019726,2]
[348699918,1736725849270,-165.265865,0.00019726,2]
[348699919,1736725849279,-165.265865,0.00019726,2]
[348699920,1736725849289,-165.265865,0.00019726,2]
[348699921,1736725849298,-165.265865,0.00019726,2]
[348699922,1736725849307,-165.265865,0.00019726,2]
[348699923,1736725849316,-165.265865,0.00019726,2]
[348699924,1736725849326,-1388.767138,0.00019726,2]
[348699925,1736725849335,-1388.767138,0.00019726,2]
[348699926,1736725849344,-1388.767138,0.00019726,2]
[348699927,1736725849353,-1388.76714613,0.00019726,2]
[348699928,1736725849362,-166.673893,0.00019726,2]
[348699929,1736725849371,-166.673893,0.00019726,2]
[348699930,1736725849381,-166.673893,0.00019726,2]
[348699931,1736725849390,-166.673891,0.00019726,2]
[348699932,1736725849399,-500.0,0.00019726,3]
[348699933,1736725849408,-500.0,0.00019726,3]
[348699934,1736725849418,-2375.27,0.00019726,3]
[348699935,1736725849427,-631.89,0.00019726,3]
[348699936,1736725849436,-940.55,0.00019726,3]
[348699937,1736725849446,-12060.29,0.00019726,3]
[348699938,1736725849455,-952.93,0.00019726,3]
[348699939,1736725849464,-175.27,0.00019726,3]
[348699940,1736725849474,-500.0,0.00019726,3]
[348699941,1736725849483,-151.0,0.0001974,2]
[348699942,1736725849492,-151.0,0.0001974,2]
[348699943,1736725849501,-333.142798,0.0001974,2]
[348699944,1736725849511,-333.142798,0.0001974,2]
[348699945,1736725849520,-843.10188816,0.00019763,2]
[348699946,1736725849529,-500.0,0.00019795,2]
[348699947,1736725849539,-1669.36,0.00019795,3]
[348699948,1736725849548,-578.74,0.00019795,3]
[348699949,1736725849558,-500.0,0.00019795,3]
[348699950,1736725849568,-515.22,0.00019795,3]
[348699951,1736725849577,-809.93,0.00019795,3]
[348699952,1736725849586,-500.0,0.00019795,3]
[348699953,1736725849596,-500.0,0.00019795,3]
[348699954,1736725849606,-500.0,0.00019795,3]
[348699955,1736725849616,-500.0,0.00019795,3]
[348699956,1736725849625,-153.0,0.000198,2]
[348699957,1736725849721,-153.0,0.00019807,2]
[348699958,1736725849731,-153.0,0.00019807,2]
[348699959,1736725849741,-153.0,0.00019807,2]
[348699960,1736725849750,-153.0,0.00019807,2]
[348699961,1736725849760,-153.0,0.00019807,2]
[348699962,1736725849770,-153.0,0.00019807,2]
[348699963,1736725849779,-153.0,0.00019807,2]
[348699964,1736725849788,-153.0,0.00019807,2]
[348699965,1736725849798,-276.0,0.00019807,2]
[348699966,1736725849807,-1776.91722069,0.000199,2]
[348699967,1736725849817,-3000.0,0.000199,2]
[348699968,1736725849826,-843.10188816,0.000199,2]
[348699969,1736725849835,-159.93578456,0.00019973,2]
[348699970,1736725849846,-379.16444176,0.00019973,2]
[348699971,1736725849855,-500.0,0.00019973,2]
[348699972,1736725849864,-624.01795158,0.0001999,3]
[348699973,1736725849874,-500.0,0.00019997,3]
[348699974,1736725849883,-500.0,0.00019997,3]
[348699975,1736725849893,-40637.3633654,0.00019998,7]
[348699976,1736725849902,-218.031243,0.00019998,2]
[348699977,1736725849911,-151.0,0.00019998,2]
[348699978,1736725849920,-151.0,0.00019998,2]
[348699979,1736725849930,-151.0,0.00019998,2]
[348699980,1736725849938,-176.526884,0.00019998,2]
[348699981,1736725849948,-176.526884,0.00019998,2]
[348699982,1736725849957,-151.0,0.00019998,2]
[348699983,1736725849967,-151.0,0.00019998,2]
[348699984,1736725849977,-151.0,0.00019998,2]
[348699985,1736725849988,-151.0,0.00019998,2]
[348699986,1736725849999,-333.142798,0.00019998,2]
[348699987,1736725850009,-333.142798,0.00019998,2]
[348699988,1736725850019,-228.860876,0.00019998,2]
[348699989,1736725850028,-228.860876,0.00019998,2]
[348699990,1736725850038,-165.265865,0.00019998,2]
[348699991,1736725850047,-165.265865,0.00019998,2]
[348699992,1736725850057,-160.0,0.00019999,2]
[348699993,1736725850067,-333.142798,0.00019999,2]
[348699994,1736725850076,-333.142798,0.00019999,2]
[348699995,1736725850086,-500.0,0.00019999,3]
[348699996,1736725850097,-500.0,0.00019999,3]
[348699997,1736725850106,-500.0,0.00019999,3]
[348699998,1736725850116,-500.0,0.00019999,3]
[348699999,1736725850127,-500.0,0.00019999,3]
[348700000,1736725850137,-500.0,0.00019999,3]
[348700001,1736725850147,-500.0,0.00019999,3]
[348700002,1736725850157,-500.0,0.00019999,3]
[348700003,1736725850166,-500.0,0.00019999,3]
[348700004,1736725850175,-500.0,0.00019999,3]
[348700005,1736725850184,-500.0,0.00019999,3]
[348700006,1736725850195,-500.0,0.00019999,3]
[348700007,1736725850205,-500.0,0.00019999,3]
[348700008,1736725850215,-333.0109481,0.00019999,3]
[348700009,1736725850225,-1832.72,0.00019999,3]
[348700010,1736725850235,-973.2,0.00019999,3]
[348700011,1736725850245,-141234.10423996,0.0002,5]
[348700012,1736725850323,-7824.14099874,0.0002,5]
[348700019,1736726508642,400.0,0.00013973,2]
[348700072,1736727036977,-300.0,0.0001833,2]
[348700073,1736727036987,-12099.43337549,0.00018331,2]
[348700075,1736727036998,-3353.22276708,0.00018331,2]
[348700079,1736727037030,-2503.69742103,0.00018331,2]
[348700081,1736727037040,-351.51951937,0.000189,2]
[348700084,1736727037049,-560.279,0.00019,2]
[348700086,1736727037058,-158.82604404,0.00019078,2]
[348700088,1736727037068,-1545.0427498,0.00019177,2]